fUSD/lending_fUSD_20250524
["ID","MTS","AMOUNT","RATE_DAILY","PERIOD"]
[362227454,1748112677035,-507.026697,0.00019287,2]
[362227455,1748112677045,-420.0,0.00019287,2]
[362227456,1748112677055,-151.0,0.00019287,2]
[362227457,1748112677064,-420.0,0.00019287,2]
[362227458,1748112677074,-151.0,0.00019287,2]
[362227459,1748112677083,-420.0,0.00019287,2]
[362227460,1748112677092,-507.026697,0.00019287,2]
[362227461,1748112677102,-420.0,0.00019287,2]
[362227462,1748112677112,-420.0,0.00019287,2]
[362227463,1748112677121,-420.0,0.00019287,2]
[362227464,1748112677130,-604.06,0.00019287,2]
[362227465,1748112677140,-420.0,0.00019287,2]
[362227466,1748112677151,-420.0,0.00019287,2]
[362227467,1748112677161,-420.0,0.00019287,2]
[362227468,1748112677171,-420.0,0.00019287,2]
[362227469,1748112677180,-486.88741931,0.00019287,2]
[362227470,1748112677189,-420.0,0.00019287,2]
[362227471,1748112677199,-375.91092198,0.00019287,2]
[362227472,1748112677209,-420.0,0.00019287,2]
[362227473,1748112677219,-420.0,0.00019287,2]
[362227474,1748112677228,-610.67,0.00019287,2]
[362227475,1748112677237,-516.49231029,0.00019287,2]
[362227476,1748112677248,-420.0,0.00019287,2]
[362227477,1748112677257,-420.0,0.00019287,2]
[362227478,1748112677268,-420.0,0.00019287,2]
[362227479,1748112677278,-151.0,0.00019287,2]
[362227480,1748112677287,-420.0,0.00019287,2]
[362227481,1748112677297,-420.0,0.00019287,2]
[362227482,1748112677307,-151.0,0.00019287,2]
[362227483,1748112677316,-420.0,0.00019287,2]
[362227484,1748112677326,-420.0,0.00019287,2]
[362227485,1748112677336,-420.0,0.00019287,2]
[362227486,1748112677346,-539.51636923,0.00019287,2]
[362227487,1748112677356,-420.0,0.00019287,2]
[362227488,1748112677366,-420.0,0.00019287,2]
[362227489,1748112677375,-420.0,0.00019287,2]
[362227490,1748112677385,-151.0,0.00019287,2]
[362227491,1748112677395,-420.0,0.00019287,2]
[362227492,1748112677404,-420.0,0.00019287,2]
[362227493,1748112677414,-420.0,0.00019287,2]
[362227494,1748112677424,-525.50063184,0.00019287,2]
[362227495,1748112677434,-420.0,0.00019287,2]
[362227496,1748112677444,-420.0,0.00019287,2]
[362227497,1748112677454,-420.0,0.00019287,2]
[362227498,1748112677463,-383.30331067,0.00019287,2]
[362227499,1748112677474,-420.0,0.00019287,2]
[362227500,1748112677483,-420.0,0.00019287,2]
[362227501,1748112677493,-420.0,0.00019287,2]
[362227502,1748112677504,-420.0,0.00019287,2]
[362227503,1748112677513,-420.0,0.00019287,2]
[362227504,1748112677523,-474.22964752,0.00019287,2]
[362227505,1748112677533,-444.52411165,0.00019287,2]
[362227506,1748112677544,-474.879074,0.00019287,2]
[362227507,1748112677558,-420.0,0.00019287,2]
[362227508,1748112677568,-420.0,0.00019287,2]
[362227509,1748112677577,-420.0,0.00019287,2]
[362227510,1748112677587,-420.0,0.00019287,2]
[362227511,1748112677598,-331.05564191,0.00019287,2]
[362227512,1748112677607,-420.0,0.00019287,2]
[362227513,1748112677617,-414.75468798,0.00019287,2]
[362227514,1748112677628,-420.0,0.00019287,2]
[362227515,1748112677638,-420.0,0.00019287,2]
[362227516,1748112677647,-548.40239971,0.00019287,2]
[362227517,1748112677657,-230.71848106,0.00019287,2]
[362227518,1748112677667,-420.0,0.00019287,2]
[362227519,1748112677677,-420.0,0.00019287,2]
[362227520,1748112677687,-250.0,0.00019287,2]
[362227521,1748112677696,-318.22793637,0.00019287,2]
[362227522,1748112677706,-420.0,0.00019287,2]
[362227523,1748112677717,-420.0,0.00019287,2]
[362227524,1748112677727,-420.0,0.00019287,2]
[362227525,1748112677737,-420.0,0.00019287,2]
[362227526,1748112677747,-4989.95,0.00019287,2]
[362227527,1748112677757,-420.0,0.00019287,2]
[362227528,1748112677767,-556.94085314,0.00019287,2]
[362227529,1748112677778,-420.0,0.00019287,2]
[362227530,1748112677788,-420.0,0.00019287,2]
[362227531,1748112677798,-420.0,0.00019287,2]
[362227532,1748112677809,-420.0,0.00019287,2]
[362227533,1748112677818,-5471.88,0.00019287,2]
[362227534,1748112677829,-420.0,0.00019287,2]
[362227535,1748112677839,-420.0,0.00019287,2]
[362227536,1748112677849,-420.0,0.00019287,2]
[362227537,1748112677860,-420.0,0.00019287,2]
[362227538,1748112677871,-420.0,0.00019287,2]
[362227539,1748112677881,-214.2216068,0.00019287,2]
[362227540,1748112677891,-1325.43,0.00019287,2]
[362227541,1748112677901,-671.69,0.00019287,2]
[362227542,1748112677911,-420.0,0.00019287,2]
[362227543,1748112677921,-420.0,0.00019287,2]
[362227544,1748112677931,-420.0,0.00019287,2]
[362227545,1748112677941,-420.0,0.00019287,2]
[362227546,1748112677952,-1929.07,0.00019287,2]
[362227547,1748112677963,-420.0,0.00019287,2]
[362227548,1748112677973,-703.6,0.00019287,2]
[362227549,1748112677982,-420.0,0.00019287,2]
[362227550,1748112677993,-420.0,0.00019287,2]
[362227551,1748112678004,-494.49,0.00019287,2]
[362227552,1748112678013,-420.0,0.00019287,2]
[362227553,1748112678023,-6652.76,0.00019287,2]
[362227554,1748112678033,-477.32636373,0.00019287,2]
[362227555,1748112678043,-420.0,0.00019287,2]
[362227556,1748112678053,-420.0,0.00019287,2]
[362227557,1748112678255,-420.0,0.00019287,2]
[362227558,1748112678266,-420.0,0.00019287,2]
[362227559,1748112678276,-420.0,0.00019287,2]
[362227560,1748112678286,-278.31948872,0.00019287,2]
[362227561,1748112678295,-420.0,0.00019287,2]
[362227562,1748112678305,-420.0,0.00019287,2]
[362227563,1748112678315,-16047.51,0.00019287,2]
[362227564,1748112678325,-4872.57,0.00019287,2]
[362227565,1748112678335,-420.0,0.00019287,2]
[362227566,1748112678345,-420.0,0.00019287,2]
[362227567,1748112678355,-1574.49,0.00019287,2]
[362227568,1748112678365,-462.46156369,0.00019287,2]
[362227569,1748112678374,-420.0,0.00019287,2]
[362227570,1748112678384,-430.8,0.00019287,2]
[362227571,1748112678394,-1479.99,0.00019287,2]
[362227572,1748112678404,-420.0,0.00019287,2]
[362227573,1748112678413,-420.0,0.00019287,2]
[362227574,1748112678423,-1505.57,0.00019287,2]
[362227575,1748112678433,-420.0,0.00019287,2]
[362227576,1748112678443,-420.0,0.00019287,2]
[362227577,1748112678452,-322.46163861,0.00019287,2]
[362227578,1748112678462,-420.0,0.00019287,2]
[362227579,1748112678472,-168.437794,0.00019287,2]
[362227580,1748112678481,-420.0,0.00019287,2]
[362227581,1748112678491,-420.0,0.00019287,2]
[362227582,1748112678501,-420.0,0.00019287,2]
[362227583,1748112678511,-842.68,0.00019287,2]
[362227584,1748112678521,-6795.24,0.00019287,2]
[362227585,1748112678531,-420.0,0.00019287,2]
[362227586,1748112678540,-222627.24,0.00019287,2]
[362227587,1748112678552,-420.0,0.00019287,2]
[362227588,1748112678562,-420.0,0.00019287,2]
[362227589,1748112678571,-3287.24,0.00019287,2]
[362227590,1748112678580,-420.0,0.00019287,2]
[362227591,1748112678589,-420.0,0.00019287,2]
[362227592,1748112678599,-328.59560976,0.00019287,2]
[362227593,1748112678608,-551.69951042,0.00019287,2]
[362227594,1748112678618,-420.0,0.00019287,2]
[362227595,1748112678627,-420.0,0.00019287,2]
[362227596,1748112678636,-2672.65,0.00019287,2]
[362227597,1748112678646,-420.0,0.00019287,2]
[362227598,1748112678655,-420.0,0.00019287,2]
[362227599,1748112678664,-891.86,0.00019287,2]
[362227600,1748112678673,-3069.02,0.00019287,2]
[362227601,1748112678683,-695.96,0.00019287,2]
[362227602,1748112678693,-420.0,0.00019287,2]
[362227603,1748112678702,-420.0,0.00019287,2]
[362227604,1748112678711,-420.0,0.00019287,2]
[362227605,1748112678720,-2800.63,0.00019287,2]
[362227606,1748112678730,-420.0,0.00019287,2]
[362227607,1748112678739,-1463.93,0.00019287,2]
[362227608,1748112678748,-420.0,0.00019287,2]
[362227609,1748112678758,-420.0,0.00019287,2]
[362227610,1748112678767,-433.05815368,0.00019287,2]
[362227611,1748112678777,-420.0,0.00019287,2]
[362227612,1748112678787,-420.0,0.00019287,2]
[362227613,1748112678796,-420.0,0.00019287,2]
[362227614,1748112678806,-448.45,0.00019287,2]
[362227615,1748112678815,-650.51,0.00019287,2]
[362227616,1748112678825,-420.94169528,0.00019287,2]
[362227617,1748112678834,-420.0,0.00019287,2]
[362227618,1748112678844,-420.0,0.00019287,2]
[362227619,1748112678853,-420.0,0.00019287,2]
[362227620,1748112678863,-420.0,0.00019287,2]
[362227621,1748112678871,-467.55259645,0.00019287,2]
[362227622,1748112678881,-465.86961466,0.00019287,2]
[362227623,1748112678891,-420.0,0.00019287,2]
[362227624,1748112678900,-1299.41,0.00019287,2]
[362227625,1748112678909,-377.00922756,0.00019287,2]
[362227626,1748112678919,-420.0,0.00019287,2]
[362227627,1748112678928,-420.0,0.00019287,2]
[362227628,1748112678938,-420.0,0.00019287,2]
[362227629,1748112678947,-420.0,0.00019287,2]
[362227630,1748112678956,-420.0,0.00019287,2]
[362227631,1748112678965,-420.0,0.00019287,2]
[362227632,1748112678975,-420.0,0.00019287,2]
[362227633,1748112678984,-420.0,0.00019287,2]
[362227634,1748112678994,-838.06,0.00019287,2]
[362227635,1748112679003,-420.0,0.00019287,2]
[362227636,1748112679013,-420.0,0.00019287,2]
[362227637,1748112679022,-8770.5,0.00019287,2]
[362227638,1748112679032,-420.0,0.00019287,2]
[362227639,1748112679041,-420.0,0.00019287,2]
[362227640,1748112679052,-420.0,0.00019287,2]
[362227641,1748112679061,-420.0,0.00019287,2]
[362227642,1748112679071,-6392.23,0.00019287,2]
[362227643,1748112679080,-420.0,0.00019287,2]
[362227644,1748112679090,-306.2428074,0.00019287,2]
[362227645,1748112679099,-420.0,0.00019287,2]
[362227646,1748112679108,-2597.59,0.00019287,2]
[362227647,1748112679117,-420.0,0.00019287,2]
[362227648,1748112679127,-303.31832971,0.00019287,2]
[362227649,1748112679136,-420.0,0.00019287,2]
[362227650,1748112679145,-420.0,0.00019287,2]
[362227651,1748112679154,-594.43,0.00019287,2]
[362227652,1748112679163,-420.0,0.00019287,2]
[362227653,1748112679173,-9045.3,0.00019287,2]
[362227654,1748112679182,-512.64,0.00019287,2]
[362227655,1748112679192,-420.0,0.00019287,2]
[362227656,1748112679201,-435.27,0.00019287,2]
[362227657,1748112679211,-420.0,0.00019287,2]
[362227658,1748112679220,-271.81845641,0.00019287,2]
[362227659,1748112679230,-420.0,0.00019287,2]
[362227660,1748112679239,-420.0,0.00019287,2]
[362227661,1748112679249,-420.0,0.00019287,2]
[362227662,1748112679258,-420.0,0.00019287,2]
[362227663,1748112679269,-609.13,0.00019287,2]
[362227664,1748112679278,-420.0,0.00019287,2]
[362227665,1748112679288,-420.0,0.00019287,2]
[362227666,1748112679297,-420.0,0.00019287,2]
[362227667,1748112679307,-420.0,0.00019287,2]
[362227668,1748112679317,-420.0,0.00019287,2]
[362227669,1748112679326,-6586.41,0.00019287,2]
[362227670,1748112679336,-344.613343,0.00019287,2]
[362227671,1748112679345,-420.0,0.00019287,2]
[362227672,1748112679355,-3389.54,0.00019287,2]
[362227673,1748112679365,-420.0,0.00019287,2]
[362227674,1748112679374,-549.03017397,0.00019287,2]
[362227675,1748112679384,-420.0,0.00019287,2]
[362227676,1748112679393,-420.0,0.00019287,2]
[362227677,1748112679403,-420.0,0.00019287,2]
[362227678,1748112679413,-151.0,0.00019287,2]
[362227679,1748112679422,-11419.48,0.00019287,2]
[362227680,1748112679432,-420.0,0.00019287,2]
[362227681,1748112679441,-420.0,0.00019287,2]
[362227682,1748112679450,-420.0,0.00019287,2]
[362227683,1748112679460,-420.0,0.00019287,2]
[362227684,1748112679469,-194.26604106,0.00019287,2]
[362227685,1748112679478,-420.0,0.00019287,2]
[362227686,1748112679488,-3367.34,0.00019287,2]
[362227687,1748112679497,-420.0,0.00019287,2]
[362227688,1748112679507,-694.35,0.00019287,2]
[362227689,1748112679517,-420.0,0.00019287,2]
[362227690,1748112679526,-420.0,0.00019287,2]
[362227691,1748112679535,-420.0,0.00019287,2]
[362227692,1748112679549,-420.0,0.00019287,2]
[362227693,1748112679558,-319.86561635,0.00019287,2]
[362227694,1748112679568,-420.0,0.00019287,2]
[362227695,1748112679577,-420.0,0.00019287,2]
[362227696,1748112679587,-420.0,0.00019287,2]
[362227697,1748112679596,-420.0,0.00019287,2]
[362227698,1748112679607,-937.06,0.00019287,2]
[362227699,1748112679617,-420.0,0.00019287,2]
[362227700,1748112679628,-420.0,0.00019287,2]
[362227701,1748112679638,-420.0,0.00019287,2]
[362227702,1748112679648,-420.0,0.00019287,2]
[362227703,1748112679657,-16179.0,0.00019288,2]
[362227704,1748112679666,-3370.41308392,0.00019297,2]
[362227705,1748112679676,-5553.43906609,0.00019297,2]
[362227706,1748112679686,-265.00451417,0.00019305,2]
[362227707,1748112679695,-238.512091,0.00019315,2]
[362227708,1748112679704,-420.0,0.00019315,2]
[362227709,1748112679714,-420.0,0.00019315,2]
[362227710,1748112679724,-420.0,0.00019315,2]
[362227711,1748112679733,-420.0,0.00019315,2]
[362227712,1748112679742,-420.0,0.00019315,2]
[362227713,1748112679752,-420.0,0.00019315,2]
[362227714,1748112679762,-420.0,0.00019315,2]
[362227715,1748112679776,-420.0,0.00019315,2]
[362227716,1748112679786,-420.0,0.00019315,2]
[362227717,1748112679795,-420.0,0.00019315,2]
[362227718,1748112679806,-552.35431268,0.00019315,2]
[362227719,1748112679815,-504.4,0.00019315,2]
[362227720,1748112679825,-420.0,0.00019315,2]
[362227721,1748112679835,-420.0,0.00019315,2]
[362227722,1748112679844,-420.0,0.00019315,2]
[362227723,1748112679854,-420.0,0.00019315,2]
[362227724,1748112679863,-420.0,0.00019315,2]
[362227725,1748112679874,-420.0,0.00019315,2]
[362227726,1748112679883,-420.0,0.00019315,2]
[362227727,1748112679894,-420.0,0.00019315,2]
[362227728,1748112679909,-151.0,0.00019315,2]
[362227729,1748112679920,-476.24126803,0.00019315,2]
[362227730,1748112679929,-420.0,0.00019315,2]
[362227731,1748112679938,-420.0,0.00019315,2]
[362227732,1748112679947,-430.7903981,0.00019315,2]
[362227733,1748112679956,-151.0,0.00019315,2]
[362227734,1748112679965,-420.0,0.00019315,2]
[362227735,1748112679974,-420.0,0.00019315,2]
[362227736,1748112679984,-202.21167229,0.00019315,2]
[362227737,1748112679994,-420.0,0.00019315,2]
[362227738,1748112680004,-420.0,0.00019315,2]
[362227739,1748112680014,-425.13550726,0.00019315,2]
[362227740,1748112680024,-420.0,0.00019315,2]
[362227741,1748112680035,-420.0,0.00019315,2]
[362227742,1748112680047,-420.0,0.00019315,2]
[362227743,1748112680057,-420.0,0.00019315,2]
[362227744,1748112680067,-420.0,0.00019315,2]
[362227745,1748112680079,-221.21656737,0.00019315,2]
[362227746,1748112680089,-420.0,0.00019315,2]
[362227747,1748112680098,-152.602475,0.00019315,2]
[362227748,1748112680107,-420.0,0.00019315,2]
[362227749,1748112680117,-420.0,0.00019315,2]
[362227750,1748112680126,-420.0,0.00019315,2]
[362227751,1748112680138,-420.0,0.00019315,2]
[362227752,1748112680147,-420.0,0.00019315,2]
[362227753,1748112680156,-420.0,0.00019315,2]
[362227754,1748112680165,-420.0,0.00019315,2]
[362227755,1748112680174,-420.0,0.00019315,2]
[362227756,1748112680184,-420.0,0.00019315,2]
[362227757,1748112680194,-420.0,0.00019315,2]
[362227758,1748112680204,-420.0,0.00019315,2]
[362227759,1748112680214,-420.0,0.00019315,2]
[362227760,1748112680224,-420.0,0.00019315,2]
[362227761,1748112680234,-420.0,0.00019315,2]
[362227762,1748112680244,-555.58929111,0.00019315,2]
[362227763,1748112680254,-152.971412,0.00019315,2]
[362227764,1748112680263,-420.0,0.00019315,2]
[362227765,1748112680273,-1020.62,0.00019315,2]
[362227766,1748112680282,-420.0,0.00019315,2]
[362227767,1748112680291,-420.0,0.00019315,2]
[362227768,1748112680508,-509.1,0.00019315,2]
[362227769,1748112680517,-420.0,0.00019315,2]
[362227770,1748112680527,-420.0,0.00019315,2]
[362227771,1748112680536,-420.0,0.00019315,2]
[362227772,1748112680548,-420.0,0.00019315,2]
[362227773,1748112680558,-420.0,0.00019315,2]
[362227774,1748112680568,-675.1,0.00019315,2]
[362227775,1748112680578,-420.0,0.00019315,2]
[362227776,1748112680587,-442.54644996,0.00019315,2]
[362227777,1748112680596,-420.0,0.00019315,2]
[362227778,1748112680605,-420.0,0.00019315,2]
[362227779,1748112680614,-420.0,0.00019315,2]
[362227780,1748112680625,-420.0,0.00019315,2]
[362227781,1748112680634,-264.24,0.00019315,2]
[362227782,1748112680644,-420.0,0.00019315,2]
[362227783,1748112680654,-420.0,0.00019315,2]
[362227784,1748112680663,-420.0,0.00019315,2]
[362227785,1748112680674,-420.0,0.00019315,2]
[362227786,1748112680683,-420.0,0.00019315,2]
[362227787,1748112680692,-1789.57,0.00019315,2]
[362227788,1748112680701,-420.0,0.00019315,2]
[362227789,1748112680711,-420.0,0.00019315,2]
[362227790,1748112680720,-420.0,0.00019315,2]
[362227791,1748112680730,-420.0,0.00019315,2]
[362227792,1748112680740,-420.0,0.00019315,2]
[362227793,1748112680749,-420.0,0.00019315,2]
[362227794,1748112680759,-420.0,0.00019315,2]
[362227795,1748112680769,-1194.3,0.00019315,2]
[362227796,1748112680779,-420.0,0.00019315,2]
[362227797,1748112680789,-420.0,0.00019315,2]
[362227798,1748112680799,-1423.6,0.00019315,2]
[362227799,1748112680809,-385.84085052,0.00019315,2]
[362227800,1748112680819,-438.57025378,0.00019315,2]
[362227801,1748112680828,-420.0,0.00019315,2]
[362227802,1748112680838,-438.32485086,0.00019315,2]
[362227803,1748112680847,-420.0,0.00019315,2]
[362227804,1748112680857,-420.0,0.00019315,2]
[362227805,1748112680866,-420.0,0.00019315,2]
[362227806,1748112680875,-239.1365508,0.00019315,2]
[362227807,1748112680884,-420.0,0.00019315,2]
[362227808,1748112680894,-151.0,0.00019315,2]
[362227809,1748112680903,-420.0,0.00019315,2]
[362227810,1748112680912,-420.0,0.00019315,2]
[362227811,1748112680921,-420.0,0.00019315,2]
[362227812,1748112680931,-1662.35,0.00019315,2]
[362227813,1748112680941,-151.0,0.00019315,2]
[362227814,1748112680950,-420.0,0.00019315,2]
[362227815,1748112680960,-304.76383937,0.00019315,2]
[362227816,1748112680969,-420.0,0.00019315,2]
[362227817,1748112680979,-312.51425235,0.00019315,2]
[362227818,1748112680988,-420.0,0.00019315,2]
[362227819,1748112680997,-420.0,0.00019315,2]
[362227820,1748112681006,-420.0,0.00019315,2]
[362227821,1748112681015,-290.19778262,0.00019315,2]
[362227822,1748112681025,-420.0,0.00019315,2]
[362227823,1748112681035,-420.0,0.00019315,2]
[362227824,1748112681044,-2320.99,0.00019315,2]
[362227825,1748112681054,-182.32970791,0.00019315,2]
[362227826,1748112681063,-420.0,0.00019315,2]
[362227827,1748112681073,-420.0,0.00019315,2]
[362227828,1748112681082,-151.0,0.00019315,2]
[362227829,1748112681091,-1461.81,0.00019315,2]
[362227830,1748112681101,-420.0,0.00019315,2]
[362227831,1748112681110,-420.0,0.00019315,2]
[362227832,1748112681120,-420.0,0.00019315,2]
[362227833,1748112681130,-2072.02,0.00019315,2]
[362227834,1748112681140,-420.0,0.00019315,2]
[362227835,1748112681149,-151.0,0.00019315,2]
[362227836,1748112681159,-420.0,0.00019315,2]
[362227837,1748112681168,-420.0,0.00019315,2]
[362227838,1748112681178,-420.0,0.00019315,2]
[362227839,1748112681187,-420.0,0.00019315,2]
[362227840,1748112681197,-420.0,0.00019315,2]
[362227841,1748112681207,-204.60019761,0.00019315,2]
[362227842,1748112681216,-151.0,0.00019315,2]
[362227843,1748112681226,-420.0,0.00019315,2]
[362227844,1748112681235,-420.0,0.00019315,2]
[362227845,1748112681245,-420.0,0.00019315,2]
[362227846,1748112681255,-420.0,0.00019315,2]
[362227847,1748112681264,-420.0,0.00019315,2]
[362227848,1748112681274,-420.0,0.00019315,2]
[362227849,1748112681283,-420.0,0.00019315,2]
[362227850,1748112681292,-507.026697,0.00019315,2]
[362227851,1748112681302,-440.89450536,0.00019315,2]
[362227852,1748112681313,-151.0,0.00019315,2]
[362227853,1748112681322,-420.0,0.00019315,2]
[362227854,1748112681332,-151.0,0.00019315,2]
[362227855,1748112681342,-420.0,0.00019315,2]
[362227856,1748112681351,-507.026697,0.00019315,2]
[362227857,1748112681361,-420.0,0.00019315,2]
[362227858,1748112681370,-489.7178713,0.00019315,2]
[362227859,1748112681380,-420.0,0.00019315,2]
[362227860,1748112681389,-604.06,0.00019315,2]
[362227861,1748112681399,-420.0,0.00019315,2]
[362227862,1748112681408,-420.0,0.00019315,2]
[362227863,1748112681418,-420.0,0.00019315,2]
[362227864,1748112681428,-420.0,0.00019315,2]
[362227865,1748112681438,-420.0,0.00019315,2]
[362227866,1748112681447,-562.44507246,0.00019315,2]
[362227867,1748112681457,-420.0,0.00019315,2]
[362227868,1748112681466,-610.67,0.00019315,2]
[362227869,1748112681476,-287.82127754,0.00019315,2]
[362227870,1748112681487,-420.0,0.00019315,2]
[362227871,1748112681496,-420.83820099,0.00019315,2]
[362227872,1748112681507,-151.0,0.00019315,2]
[362227873,1748112681518,-420.0,0.00019315,2]
[362227874,1748112681528,-420.0,0.00019315,2]
[362227875,1748112681538,-151.0,0.00019315,2]
[362227876,1748112681551,-420.0,0.00019315,2]
[362227877,1748112681563,-420.0,0.00019315,2]
[362227878,1748112681572,-420.0,0.00019315,2]
[362227879,1748112681581,-420.0,0.00019315,2]
[362227880,1748112681590,-420.0,0.00019315,2]
[362227881,1748112681599,-420.0,0.00019315,2]
[362227882,1748112681609,-151.0,0.00019315,2]
[362227883,1748112681621,-420.0,0.00019315,2]
[362227884,1748112681632,-420.0,0.00019315,2]
[362227885,1748112681643,-166.8550069,0.00019315,2]
[362227886,1748112681652,-420.0,0.00019315,2]
[362227887,1748112681662,-420.0,0.00019315,2]
[362227888,1748112681671,-420.0,0.00019315,2]
[362227889,1748112681682,-565.30924633,0.00019315,2]
[362227890,1748112681692,-420.0,0.00019315,2]
[362227891,1748112681702,-420.0,0.00019315,2]
[362227892,1748112681711,-420.0,0.00019315,2]
[362227893,1748112681723,-420.0,0.00019315,2]
[362227894,1748112681735,-420.0,0.00019315,2]
[362227895,1748112681745,-420.0,0.00019315,2]
[362227896,1748112681754,-256.3712651,0.00019315,2]
[362227897,1748112681763,-420.0,0.00019315,2]
[362227898,1748112681775,-420.0,0.00019315,2]
[362227899,1748112681785,-420.0,0.00019315,2]
[362227900,1748112681794,-420.0,0.00019315,2]
[362227901,1748112681803,-420.0,0.00019315,2]
[362227902,1748112681812,-250.0,0.00019315,2]
[362227903,1748112681821,-420.0,0.00019315,2]
[362227904,1748112681830,-420.0,0.00019315,2]
[362227905,1748112681839,-420.0,0.00019315,2]
[362227906,1748112681848,-420.0,0.00019315,2]
[362227907,1748112681858,-4989.95,0.00019315,2]
[362227908,1748112681867,-420.0,0.00019315,2]
[362227909,1748112681876,-420.0,0.00019315,2]
[362227910,1748112681885,-420.0,0.00019315,2]
[362227911,1748112681896,-420.0,0.00019315,2]
[362227912,1748112681906,-420.0,0.00019315,2]
[362227913,1748112681916,-5471.88,0.00019315,2]
[362227914,1748112681925,-420.0,0.00019315,2]
[362227915,1748112681935,-420.0,0.00019315,2]
[362227916,1748112681944,-386.35062913,0.00019315,2]
[362227917,1748112681954,-420.0,0.00019315,2]
[362227918,1748112681963,-420.0,0.00019315,2]
[362227919,1748112681972,-1325.43,0.00019315,2]
[362227920,1748112681981,-671.69,0.00019315,2]
[362227921,1748112681991,-487.95184722,0.00019315,2]
[362227922,1748112682000,-420.0,0.00019315,2]
[362227923,1748112682191,-420.0,0.00019315,2]
[362227924,1748112682202,-420.0,0.00019315,2]
[362227925,1748112682212,-1929.07,0.00019315,2]
[362227926,1748112682222,-420.0,0.00019315,2]
[362227927,1748112682233,-703.6,0.00019315,2]
[362227928,1748112682243,-420.0,0.00019315,2]
[362227929,1748112682253,-420.0,0.00019315,2]
[362227930,1748112682262,-494.49,0.00019315,2]
[362227931,1748112682271,-420.0,0.00019315,2]
[362227932,1748112682281,-6652.76,0.00019315,2]
[362227933,1748112682290,-420.0,0.00019315,2]
[362227934,1748112682299,-420.0,0.00019315,2]
[362227935,1748112682309,-420.0,0.00019315,2]
[362227936,1748112682319,-420.0,0.00019315,2]
[362227937,1748112682329,-420.0,0.00019315,2]
[362227938,1748112682339,-420.0,0.00019315,2]
[362227939,1748112682560,-420.0,0.00019315,2]
[362227940,1748112682569,-16047.51,0.00019315,2]
[362227941,1748112682579,-4872.57,0.00019315,2]
[362227942,1748112682588,-420.0,0.00019315,2]
[362227943,1748112682598,-420.0,0.00019315,2]
[362227944,1748112682607,-1574.49,0.00019315,2]
[362227945,1748112682616,-430.8,0.00019315,2]
[362227946,1748112682626,-1479.99,0.00019315,2]
[362227947,1748112682635,-420.0,0.00019315,2]
[362227948,1748112682644,-420.0,0.00019315,2]
[362227949,1748112682653,-1505.57,0.00019315,2]
[362227950,1748112682662,-420.0,0.00019315,2]
[362227951,1748112682671,-241.54603223,0.00019315,2]
[362227952,1748112682680,-420.0,0.00019315,2]
[362227953,1748112682690,-420.0,0.00019315,2]